Cogmind - Beta 11.1 @@@ ROGUE MODE // 2022.09.27 @ 22:14:47 Player: DuckBoy Result: Destroyed by S-27 Virus with Autogun Performance ------------- Evolutions (4) 2000 Regions Visited (13) 2600 Robots Destroyed (211) 1055 Value Destroyed (8365) 8365 Prototype IDs (43) 860 Alien Tech Used (0) 0 Bonus (3277) 3277 TOTAL SCORE: 18157 Bonus ------- High Alert Combat Kills 950 Follower Combat Kills 642 Entered Garrisons 400 Used RIF Installer 1000 Aligned with FarCom 300 Friendly Fire -15 Cogmind --------- Core Integrity 0/850 Matter 64/300 Energy 25/100 System Corruption 39% Temperature Cool (0) Movement Hovering (150) Ox2 Location -6/Lower Caves Parts ------- > --- POWER (1) -------- (None) > --- PROPULSION (4) --- Gyrokinetic Inverter > --- UTILITY (8) ------ Improved Heat Sink Large Storage Unit Salvage Targeting Computer Propulsion Shielding Hacking Suite System Shield > --- WEAPON (2) ------- Heavy Ion Cannon > --- INVENTORY (15) --- Improved Heat Sink Advanced Terrain Scanner Relay Coupler [NC] (29) Relay Coupler [NC] (29) Riot Gun Arc Projector Arc Projector Cooled Pulse Rifle Remote Datajack Makeshift Sword Peak State ------------ > --- POWER ------------ Micro Nuclear Core > --- PROPULSION ------- Medium Treads Medium Treads Medium Treads Medium Treads > --- UTILITY ---------- Improved Cooling System High-capacity Storage Unit Matter Compressor Advanced Signal Interpreter Melee Analysis Suite Improved Melee Analysis Suite Improved Medium Armor Plating Relay Coupler [Grunt] > --- WEAPON ----------- Heavy Ion Cannon Power Maul > --- INVENTORY -------- Micro Nuclear Core Improved Airjet Improved Airjet Improved Airjet Cooled Airjet Cooled Airjet Cooled Airjet Improved Heat Sink Graphene Brace Relay Coupler [NC] Relay Coupler [NC] Arc Projector Arc Projector Gatling Laser Cooled Pulse Rifle Cooled Pulse Rifle Precision Assault Rifle Precision Assault Rifle Precision Assault Rifle Remote Datajack [Rating: 65] Favorites ----------- Power Reinforced Deuterium Engine Engine Reinforced Deuterium Engine Power Core Micro Nuclear Core Reactor Cold Fusion Reactor Propulsion Light Treads Treads Light Treads Wheel Armored Wheel Hover Unit Cooled Airjet Utility Improved Heat Sink Device Improved Heat Sink Storage High-capacity Storage Unit Processor Improved Melee Analysis Suite Hackware Hacking Suite Protection Improved Light Armor Plating Weapon Power Maul Energy Gun Heavy EM Shotgun Energy Cannon Guided Plasma Cannon Ballistic Gun Improved Assault Rifle Ballistic Cannon Magnetic Acceleration Cannon Launcher Proton Missile Launcher Special Weapon Remote Datajack Impact Weapon Power Maul Slashing Weapon Chainsword Special Melee Weapon Improved Datajack Build | -11 -10 -10 -10 -9 -8 -8 -7 -7 -7 -6 -6 -6 -6 ------- Run | Scr Mat Min Exi Min Mat Gar Fac Gar Sto Fac Was Fac Low Slots Evolved 8 | . . . . . 4 . 2 . . 2 . . . Power . | . . . . . . . . . . . . . . Propulsion 2 | . . . . . . . 2 . . . . . . Utility 6 | . . . . . 4 . . . . 2 . . . Weapon . | . . . . . . . . . . . . . . Parts Attached 279 | 6 6 2 . 2 51 10 50 30 25 61 6 23 7 Power 15 | 1 . . . . 6 . . . 1 4 . 3 . Engine 9 | 1 . . . . 6 . . . . 1 . 1 . Core 5 | . . . . . . . . . . 3 . 2 . Reactor 1 | . . . . . . . . . 1 . . . . Propulsion 57 | 2 1 . . . 14 2 12 . 7 15 . 4 . Treads 38 | 2 1 . . . 14 2 7 . 5 7 . . . Leg . | . . . . . . . . . . . . . . Wheel 5 | . . . . . . . 5 . . . . . . Hover 14 | . . . . . . . . . 2 8 . 4 . Flight . | . . . . . . . . . . . . . . Utility 85 | 1 2 . . 2 10 3 9 9 6 25 2 11 5 Device 37 | . 1 . . 2 4 3 3 3 1 9 1 7 3 Storage 6 | 1 1 . . . . . 1 . . 3 . . . Processor 9 | . . . . . 3 . 2 . . 3 . . 1 Hackware 17 | . . . . . . . 2 3 3 6 1 2 . Protection 16 | . . . . . 3 . 1 3 2 4 . 2 1 Artifact . | . . . . . . . . . . . . . . Weapon 122 | 2 3 2 . . 21 5 29 21 11 17 4 5 2 Energy Gun 28 | . . . . . 15 1 5 4 . 1 1 1 . Energy Cannon 17 | . . . . . . 2 9 3 . 1 1 . 1 Ballistic Gun 18 | 2 2 2 . . 1 2 . . 3 5 . 1 . Ballistic Cannon 6 | . . . . . 1 . . . 1 2 . 2 . Launcher 11 | . . . . . 2 . . 7 2 . . . . Special Weapon 18 | . 1 . . . . . 5 3 3 3 1 1 1 Impact Weapon 18 | . . . . . . . 6 4 2 5 1 . . Slashing Weapon 3 | . . . . . 1 . 2 . . . . . . Piercing Weapon . | . . . . . . . . . . . . . . Special Melee Weapon 3 | . . . . . 1 . 2 . . . . . . Unidentified Prototypes 12 | . 1 . . 1 4 . 1 . 5 . . . . Corrupted Parts 8 | . . . . . 3 3 . . 1 . 1 . . System Corruption 52 | . . . . . 19 25 . . 4 . 4 . . Parts Lost 66 | . . 1 . . 14 1 5 6 5 15 . 14 5 Power 8 | . . . . . 3 . . . . 3 . 2 . Propulsion 18 | . . . . . 3 1 1 1 3 4 . 5 . Utility 27 | . . . . . 4 . 2 4 2 7 . 5 3 Weapon 13 | . . 1 . . 4 . 2 1 . 1 . 2 2 Highest Loss Streak 11 | . . 1 . . 11 1 1 4 2 5 . 7 3 To Critical Strikes . | . . . . . . . . . . . . . . Average Slot Usage (%) 93 | . 94 99 100 100 94 99 99 90 82 92 96 91 51 Engine 6 | . 14 14 14 14 8 9 7 7 . 1 6 . . Core 1 | . . . . . . . . . . 4 . 4 . Treads 18 | . 28 28 28 28 17 18 27 . 4 18 . . . Wheel 2 | . . . . . . . 2 25 11 . . . . Hover 3 | . . . . . . . . . 2 4 26 24 6 Device 12 | . 8 14 14 14 16 16 17 23 4 8 3 4 5 Storage 8 | . 14 14 14 14 9 9 7 7 7 6 6 6 6 Processor 11 | . . . . . 18 27 15 2 . 15 6 3 5 Hackware 6 | . . . . . . . 2 4 16 11 26 25 13 Protection 3 | . . . . . 6 1 2 4 10 4 6 5 . Energy Gun 3 | . . . . . 13 8 2 2 . . 4 3 . Energy Cannon 1 | . . . . . . 8 2 . . 1 . . 5 Ballistic Gun 6 | . 23 27 28 28 2 . 1 . 1 2 . . . Special Weapon 1 | . 4 . . . . . 1 1 2 1 4 1 5 Impact Weapon 2 | . . . . . . . 3 4 4 4 1 5 . Naked Turns . | . . . . . . . . . . . . . . Heaviest Build 101 | 12 48 50 50 50 72 73 80 77 79 101 32 47 34 Greatest Support 112 | 40 40 40 40 40 40 40 92 48 112 112 34 37 11 Greatest Overweight (x) 13 | 2 1 1 1 1 13 1 7 2 6 1 . 3 3 Average Overweight (x) . | . . 1 1 1 1 1 1 1 2 . . . 2 Largest Inventory Capacity 20 | 8 20 20 20 20 20 20 20 20 20 20 15 15 15 Average Capacity 18 | 6 9 20 20 20 20 20 20 20 20 19 15 15 15 Most Carried 20 | 3 9 10 11 14 20 20 20 20 20 20 15 15 10 Average Carried 15 | 1 7 9 10 13 18 19 15 19 19 18 14 13 8 Final Capacity 20 | 8 20 20 20 20 20 20 20 20 20 15 15 15 15 Final Carried 20 | 3 9 10 11 14 20 20 20 20 20 14 15 9 10 Class Distribution -------------------- 46% | Mutant 30% | Bothacker-Mutant 11% | Hacker-Mutant 9% | Scavenger-Mutant Dominant Class ---------------- Mutant | -10/Materials Mutant | -10/Mines Mutant | -10/Exiles Mutant | -9/Mines Mutant | -8/Materials Bothacker-Mutant | -8/Garrison Mutant | -7/Factory Bothacker-Mutant | -7/Garrison Bothacker-Mutant | -7/Storage Bothacker-Mutant | -6/Factory Hacker-Mutant | -6/Waste Hacker-Mutant | -6/Factory Hacker-Mutant | -6/Lower Caves Resources | -11 -10 -10 -10 -9 -8 -8 -7 -7 -7 -6 -6 -6 -6 ----------- Run | Scr Mat Min Exi Min Mat Gar Fac Gar Sto Fac Was Fac Low Matter Collected 4830 | 253 291 82 . 32 629 373 580 420 335 1246 . 447 142 Remotely 224 | . . . . . . . . . . . . 224 . Salvage Created 8686 | . 496 153 . 24 2240 724 1523 705 1375 1199 . 176 71 Parts 413 | . 34 4 . 6 119 43 77 33 39 49 . 5 4 Haulers Intercepted 12 | . 2 . . . 4 . 3 . . 3 . . . Recyclers Shooed 2 | . . . . . . . . . 1 . . 1 . Parts Field Recycled 7 | . . . . . . . . . . . . 7 . Retrieved Matter 201 | . . . . . . . . . . . . 201 . Parts Self-Destructed 2 | . . . . . . . . . . . . . 2 Prevented 1 | . . . . . . . . . . . . . 1 Kills | -11 -10 -10 -10 -9 -8 -8 -7 -7 -7 -6 -6 -6 -6 ------- Run | Scr Mat Min Exi Min Mat Gar Fac Gar Sto Fac Was Fac Low Combat Hostiles Destroyed 149 | . 10 3 . 2 31 23 29 13 21 13 . 3 1 Melee 9 | . . . . . . . 2 . 1 6 . . . Guns 61 | . 10 3 . 2 18 9 13 1 . 4 . 1 . Cannons 32 | . . . . . 1 13 12 3 . 1 . 1 1 AOE 33 | . . . . . 9 1 1 7 13 2 . . . Classes Destroyed 19 | . 6 . . . 5 1 2 . 3 . . 1 1 Worker 15 | . 1 . . . 8 . 1 . 1 4 . . . Builder 5 | . . . . . 1 . . . 1 2 . 1 . Tunneler 2 | . . . . . . . 1 . . 1 . . . Hauler 12 | . 2 . . . 4 . 3 . . 3 . . . Recycler 6 | . . . . . 4 . . . . 1 . 1 . Mechanic 2 | . . . . . . . . . 2 . . . . Operator 5 | . 2 . . . 1 . 1 . 1 . . . . Watcher 15 | . 2 . . . 5 . 2 . . 6 . . . Swarmer 40 | . 6 . . 2 7 13 9 1 . 1 . 1 . Cutter 2 | . . . . . 2 . . . . . . . . Grunt 63 | . 4 2 . . 14 7 11 10 13 2 . . . Brawler 6 | . . . . . . 1 1 . 3 1 . . . Duelist 2 | . . . . . . . . . 2 . . . . Protector 1 | . . . . . . . . . 1 . . . . Sentry 19 | . . . . . 7 2 4 1 2 3 . . . Hunter 1 | . . . . . . . . . . . . 1 . Programmer 12 | . . . . . . . 4 1 . 6 . 1 . Heavy 1 | . . . . . 1 . . . . . . . . Mutant 1 | . . . . . . . . . . . . . 1 Best Kill Streak 13 | . 3 2 . 2 6 6 7 4 13 3 . 2 1 Combat Bots Only 9 | . 3 2 . 2 6 6 7 4 9 2 . 1 1 Max Kills in Single Turn 5 | . 1 1 . 2 3 2 1 2 5 1 . 1 1 Gunslinging 1 | . . . . 1 1 . . . . . . . . Exploded 3 | . . . . . 3 1 1 2 2 1 . . . Melee 1 | . . . . . . . 1 . 1 1 . . . Uniques/NPCs Destroyed 1 | . . 1 . . . . . . . . . . . YI-UF0 (-10/Mines) Combat | -11 -10 -10 -10 -9 -8 -8 -7 -7 -7 -6 -6 -6 -6 -------- Run | Scr Mat Min Exi Min Mat Gar Fac Gar Sto Fac Was Fac Low Damage Taken 11013 | . 296 253 . 9 2120 159 1465 689 632 3059 . 1934 397 Core 1693 | . 78 35 . 9 393 35 153 59 77 398 . 327 129 Absorbed by Shields . | . . . . . . . . . . . . . . Redirected to Shielding 10 | . . . . . . . . . . . . . 10 Regen/Repaired (Parts) 738 | . . . . . . . 215 . . 477 . 46 . Core Remaining (%) 57 | 100 . . . 51 . 22 . . 58 . . . . Volleys Fired 516 | . 47 10 . 2 93 56 102 40 36 49 17 57 7 Largest 2 | . 2 2 . 2 2 2 2 2 1 2 1 2 2 Hottest 160 | . 123 46 . 46 100 120 160 160 39 81 55 113 93 Shots Fired 715 | . 85 19 . 4 179 58 123 51 37 74 17 57 11 Gun 431 | . 78 19 . 4 171 17 45 12 . 43 10 30 2 Cannon 184 | . . . . . 6 41 71 11 . 21 . 25 9 Launcher 49 | . . . . . 2 . . 23 24 . . . . Special 51 | . 7 . . . . . 7 5 13 10 7 2 . Kinetic 264 | . 78 19 . 4 47 2 10 . . 61 . 41 2 Thermal 174 | . 7 . . . 11 41 87 13 . 2 . 4 9 Explosive 2 | . . . . . 2 . . . . . . . . Electromagnetic 231 | . . . . . 119 15 19 33 24 1 10 10 . Robot Hit Streak 19 | . 11 9 . 8 19 5 17 12 19 13 16 10 6 Robot Miss Streak 6 | . 1 1 . 2 6 3 3 3 3 1 2 4 1 Penetration Max . | . . . . . . . . . . . . . . Secondary Targets 7 | . 3 . . 1 3 . . . . . . . . Max Gunslinging Chain 1 | . 1 . . 1 1 . . . . . . . . Shots Hit Robots 537 | . 61 17 . 2 141 13 86 26 33 97 15 39 7 Core Hits 306 | . 21 8 . 2 86 25 52 35 39 27 . 8 3 Critical Kills 2 | . . . . . . . . . . 2 . . . Critical Parts Destroyed 23 | . . . . . 1 . 4 1 5 9 . 3 . Critical Strikes 33 | . . . . . 1 . 6 1 6 14 . 5 . Burn 1 | . . . . . . . 1 . . . . . . Destroy 1 | . . . . . 1 . . . . . . . . Blast 2 | . . . . . . . . . . . . 2 . Smash 29 | . . . . . . . 5 1 6 14 . 3 . Melee Attacks 385 | . . . . . 3 . 62 22 31 197 1 69 . Impact 350 | . . . . . . . 30 22 31 197 1 69 . Slashing 28 | . . . . . 3 . 25 . . . . . . Piercing . | . . . . . . . . . . . . . . Sneak Attacks 29 | . . . . . . . 18 . 3 7 . 1 . Combat Hostiles 9 | . . . . . . . 6 . 3 . . . . Follow-up Attacks . | . . . . . . . . . . . . . . Damage Inflicted 19196 | . 904 267 . 33 3841 1144 3879 1552 2794 3623 6 977 176 Guns 6055 | . 880 267 . 33 2720 190 676 133 . 731 6 377 42 Cannons 4101 | . . . . . 169 929 1940 351 . 229 . 349 134 Explosions 4448 | . . . . . 952 25 63 971 2321 116 . . . Melee 4563 | . . . . . . . 1200 97 473 2547 . 246 . Ramming 5 | . . . . . . . . . . . . 5 . Kinetic 3487 | . 880 267 . 33 646 15 95 . . 960 . 549 42 Thermal 5192 | . 24 . . . 848 954 2278 442 300 116 . 96 134 Explosive 502 | . . . . . 131 . . . 371 . . . . Electromagnetic 5447 | . . . . . 2216 175 306 1013 1650 . 6 81 . Impact 4215 | . . . . . . . 852 97 473 2547 . 246 . Slashing 348 | . . . . . . . 348 . . . . . . Piercing . | . . . . . . . . . . . . . . Highest Corruption 48 | . . . . . 23 48 . 1 4 12 37 39 39 Average Corruption 13 | . . . . . 4 31 . 1 4 6 22 31 39 Corruption Purged 11 | . . . . . . . . 1 . . . 10 . Corruption Blocked . | . . . . . . . . . . . . . . Effects 409 | . . . . . 43 78 . . 16 139 13 88 32 Message Errors 79 | . . . . . 10 18 . . 6 25 2 13 5 Matter Fused 121 | . . . . . 12 27 . . 4 39 3 27 9 Heat Flow Errors 47 | . . . . . 6 9 . . 1 20 2 7 2 Energy Discharges 53 | . . . . . 7 12 . . 2 20 . 10 2 Parts Rejected 2 | . . . . . . . . . . 2 . . . Data Loss (minor) 48 | . . . . . 5 6 . . 1 16 2 11 7 Data Loss (major) 15 | . . . . . . . . . . 8 1 4 2 Misfires 18 | . . . . . 1 3 . . 1 6 . 4 3 Alerts 8 | . . . . . 2 . . . 1 2 . 2 1 Misdirections 6 | . . . . . . . . . . . 3 3 . Weapon Failures 12 | . . . . . . 3 . . . 1 . 7 1 Overload Shots 3 | . . . . . . . . . . . . 3 . Overflow Damage 2153 | . 1 . . . 24 8 521 46 301 1079 . 172 1 Projectiles 25 | . 1 . . . . 5 18 . . . . . 1 Explosions 180 | . . . . . 24 3 2 16 21 114 . . . Melee 1948 | . . . . . . . 501 30 280 965 . 172 . Knockbacks 22 | . . . . . . . 2 . . 13 . 7 . Impact 14 | . . . . . . . 2 . . 11 . 1 . Kinetic 7 | . . . . . . . . . . 1 . 6 . Secondary 1 | . . . . . . . . . . 1 . . . Self-Inflicted Damage 704 | . . . . . 322 28 53 105 28 166 . 2 . Shots 22 | . . . . . 9 1 1 6 3 2 . . . Rammed 2 | . . . . . . . . . . . . 2 . Targets Rammed 2 | . . . . . . . . . . . . 2 . Kicked . | . . . . . . . . . . . . . . Crushed . | . . . . . . . . . . . . . . Highest Temperature 420 | . 40 4 . . 275 420 270 82 76 251 257 279 209 Average Temperature 71 | . 11 3 . . 68 100 57 32 26 95 113 66 62 Received Heat Transfer 2675 | . 60 57 . . 639 18 339 306 309 537 . 111 299 Effects 6 | . . . . . 1 2 . . . . . 3 . Energy Bleed 2 | . . . . . 1 1 . . . . . . . Interference 3 | . . . . . . . . . . . . 3 . Short Circuit 1 | . . . . . . 1 . . . . . . . Siege Activations . | . . . . . . . . . . . . . . Robots Corrupted 10 | . . . . . 3 . . 2 5 . . . . Combat Hostiles 10 | . . . . . 3 . . 2 5 . . . . Parts Fried 59 | . . . . . 21 1 1 3 13 18 . 2 . Impact Corruptions 67 | . . . . . . . 12 1 7 39 . 8 . Robots Melted . | . . . . . . . . . . . . . . Combat Hostiles . | . . . . . . . . . . . . . . Parts Melted 8 | . . . . . . 3 5 . . . . . . Heat Transferred 9627 | . 50 . . . 946 2130 4887 892 350 50 . 137 185 Parts Sabotaged . | . . . . . . . . . . . . . . Parts Stolen . | . . . . . . . . . . . . . . Parts Stripped . | . . . . . . . . . . . . . . Power Chain Reactions 20 | . . . . . 11 1 1 3 4 . . . . Missiles Intercepted . | . . . . . . . . . . . . . . Alert | -11 -10 -10 -10 -9 -8 -8 -7 -7 -7 -6 -6 -6 -6 ------- Run | Scr Mat Min Exi Min Mat Gar Fac Gar Sto Fac Was Fac Low Peak Influence 1208 | . 211 50 . 96 483 1208 714 1185 968 471 184 350 . Initial 634 | . . . . . . 313 634 349 577 297 138 128 . Average 283 | . 78 12 . 58 189 871 288 865 672 174 178 164 . Maximum Alert Level 4 | . 1 . . . 2 4 3 4 3 2 . 1 . Low Security (%) 53 | 100 99 100 . 100 54 . 39 . . 62 100 73 . Level 1 24 | . . . . . 36 8 37 4 . 34 . 26 . Level 2 9 | . . . . . 8 13 16 21 62 2 . . . Level 3 10 | . . . . . . 67 6 49 37 . . . . Level 4 2 | . . . . . . 10 . 24 . . . . . Level 5 . | . . . . . . . . . . . . . . High Security . | . . . . . . . . . . . . . . Max Security . | . . . . . . . . . . . . . . Squads Dispatched 50 | . 1 . . . 4 . 10 . 10 18 . 7 . Investigation 15 | . . . . . . . 2 . 1 8 . 4 . Extermination 13 | . . . . . . . 4 . . 8 . 1 . Reinforcement 14 | . 1 . . . 4 . 2 . 3 2 . 2 . Assault 7 | . . . . . . . 2 . 5 . . . . Garrison 1 | . . . . . . . . . 1 . . . . Intercept . | . . . . . . . . . . . . . . Searches Triggered . | . . . . . . . . . . . . . . Construction Impeded 5 | . . . . . 1 . . . 2 1 . 1 . Haulers Reinforced 1 | . . . . . . . 1 . . . . . . Active Scanning Responses . | . . . . . . . . . . . . . . Cargo Convoy Interrupts 1 | . . . . . . . 1 . . . . . . Stealth | -11 -10 -10 -10 -9 -8 -8 -7 -7 -7 -6 -6 -6 -6 --------- Run | Scr Mat Min Exi Min Mat Gar Fac Gar Sto Fac Was Fac Low Distress Signals 14 | . 2 . . . 3 . 2 . 3 2 . 2 . Communications Jammed 2 | . . . . . . . . . . . . 2 . Distress Signals 2 | . . . . . . . . . . . . 2 . Times Spotted 305 | . 20 3 . 3 44 11 40 29 54 44 5 43 9 Peak Tracking Total 11 | . 4 2 . 1 5 3 5 6 9 6 5 11 6 Tactical Retreats 34 | . . . . . 5 3 2 5 4 5 . 10 . Traps | -11 -10 -10 -10 -9 -8 -8 -7 -7 -7 -6 -6 -6 -6 ------- Run | Scr Mat Min Exi Min Mat Gar Fac Gar Sto Fac Was Fac Low Traps Triggered 29 | . 1 . . . 1 7 3 11 . 4 . 2 . Indirectly 6 | . . . . . . . . 6 . . . . . Trap Hack Attempts 4 | . . . . . 4 . . . . . . . . Triggered . | . . . . . . . . . . . . . . Disarmed 1 | . . . . . 1 . . . . . . . . Reprogrammed . | . . . . . . . . . . . . . . Reused . | . . . . . . . . . . . . . . Traps Extracted . | . . . . . . . . . . . . . . Installed . | . . . . . . . . . . . . . . Triggered 9 | . . . . . . . 1 2 2 3 . . 1 Machines | -11 -10 -10 -10 -9 -8 -8 -7 -7 -7 -6 -6 -6 -6 ---------- Run | Scr Mat Min Exi Min Mat Gar Fac Gar Sto Fac Was Fac Low Machines Disabled 36 | . . . . . 8 8 1 6 7 3 . 2 1 Max in Single Turn 2 | . . . . . 2 1 1 1 2 2 . 1 1 Garrison Access 7 | . . . . . . . 1 . 1 4 . 1 . Garrison Relay 8 | . . . . . . 4 . 4 . . . . . Machines Sabotaged . | . . . . . . . . . . . . . . Garrisons Compromised 1 | . . . . . . . 1 . . . . . . Overloaded Fab Kills . | . . . . . . . . . . . . . . Hacking | -11 -10 -10 -10 -9 -8 -8 -7 -7 -7 -6 -6 -6 -6 --------- Run | Scr Mat Min Exi Min Mat Gar Fac Gar Sto Fac Was Fac Low Machines Accessed 81 | . 5 . 2 . 8 . 13 . 6 30 . 17 . Terminals 49 | . 5 . . . 6 . 7 . 6 15 . 10 . Fabricators 6 | . . . . . . . 1 . . 4 . 1 . Repair Stations 7 | . . . . . . . 1 . . 4 . 2 . Recycling Units 6 | . . . . . . . 1 . . 2 . 3 . Scanalyzers 3 | . . . . . 1 . 1 . . 1 . . . Garrison Access 8 | . . . . . 1 . 2 . . 4 . 1 . Total Hacks 215 | . 13 . 5 . 21 . 38 . 12 77 . 49 . Successful 119 | . 7 . 5 . 11 . 18 . 7 44 . 27 . Failed 94 | . 6 . . . 10 . 20 . 5 32 . 21 . Catastrophic 20 | . . . . . 2 . 5 . 1 7 . 5 . Database Lockouts 2 | . . . . . . . . . . 1 . 1 . Manual 78 | . 9 . 1 . 10 . 14 . 4 21 . 19 . Terminals 133 | . 13 . . . 16 . 22 . 12 37 . 33 . Fabricators 17 | . . . . . . . 2 . . 11 . 4 . Repair Stations 20 | . . . . . . . 3 . . 11 . 6 . Recycling Units 12 | . . . . . . . 3 . . 5 . 4 . Scanalyzers 16 | . . . . . 4 . 6 . . 6 . . . Garrison Access 12 | . . . . . 1 . 2 . . 7 . 2 . Terminal Hacks 48 | . 3 . 5 . 4 . 4 . 7 12 . 13 . Record 4 | . . . 4 . . . . . . . . . . Part Schematic 11 | . . . . . . . 1 . 1 2 . 7 . Robot Analysis 2 | . . . . . . . . . . 1 . 1 . Prototype ID Bank 2 | . . . . . . . . . . 1 . 1 . Open Door 4 | . . . . . . . . . 4 . . . . Branch Access Points 3 | . 1 . . . 1 . 1 . . . . . . Terminal Index 2 | . . . . . . . . . . 1 . 1 . Fabricator Index 1 | . . . . . . . . . . . . 1 . Garrison Index 1 | . . . . . . . . . . 1 . . . Alert Level 1 | . . . . . 1 . . . . . . . . Unreport Threat 8 | . . . . . 1 . 2 . 2 2 . 1 . Locate Traps 1 | . . . . . . . . . . . . 1 . Assault Status 1 | . 1 . . . . . . . . . . . . Recall Investigation 2 | . . . . . . . . . . 2 . . . Recall Reinforcements 1 | . 1 . . . . . . . . . . . . Hauler Manifests 1 | . . . . . . . . . . 1 . . . Registered Components 1 | . . . . . . . . . . 1 . . . Zone Layout 1 | . . . . . 1 . . . . . . . . EX-Prototype ID Bank 1 | . . . 1 . . . . . . . . . . Fabricator Hacks 10 | . . . . . . . 1 . . 6 . 3 . Network Status 3 | . . . . . . . 1 . . 1 . 1 . Load Schematic 4 | . . . . . . . . . . 3 . 1 . Build 3 | . . . . . . . . . . 2 . 1 . Repair Station Hacks 14 | . . . . . . . 2 . . 9 . 3 . Scan Component 7 | . . . . . . . 1 . . 4 . 2 . Repair 6 | . . . . . . . 1 . . 4 . 1 . Refit 1 | . . . . . . . . . . 1 . . . Recycling Unit Hacks 2 | . . . . . . . . . . 2 . . . Process 1 | . . . . . . . . . . 1 . . . Report Inventory 1 | . . . . . . . . . . 1 . . . Scanalyzer 14 | . . . . . 4 . 5 . . 5 . . . Insert Component 5 | . . . . . 2 . 1 . . 2 . . . Analyze 9 | . . . . . 2 . 4 . . 3 . . . Garrison Access Hacks 12 | . . . . . 1 . 2 . . 7 . 2 . Unlock Access 2 | . . . . . 1 . 1 . . . . . . Seal Access 6 | . . . . . . . 1 . . 4 . 1 . Coupler Status 4 | . . . . . . . . . . 3 . 1 . Unauthorized Hacks 19 | . 4 . . . 2 . 4 . . 3 . 6 . Terminals 13 | . 4 . . . 2 . 3 . . 2 . 2 . Assimilate 6 | . 2 . . . . . 1 . . 1 . 2 . Botnet 5 | . 1 . . . 1 . 2 . . 1 . . . Operators 2 | . 1 . . . 1 . . . . . . . . Fabricators . | . . . . . . . . . . . . . . Repair Stations . | . . . . . . . . . . . . . . Recycling Units 6 | . . . . . . . 1 . . 1 . 4 . Recyclers 1 | . . . . . . . . . . . . 1 . Mask 5 | . . . . . . . 1 . . 1 . 3 . Scanalyzers . | . . . . . . . . . . . . . . Garrison Access . | . . . . . . . . . . . . . . Data Cores Recovered . | . . . . . . . . . . . . . . Used . | . . . . . . . . . . . . . . Hacking Detections 65 | . 3 . . . 8 . 12 . 4 24 . 14 . Full Trace Events 14 | . 1 . . . 1 . 1 . . 7 . 4 . Feedback Events 3 | . . . . . . . . . . 2 . 1 . Corruption 2 | . . . . . . . . . . 2 . . . Hackware Fried 1 | . . . . . . . . . . . . 1 . Feedback Blocked . | . . . . . . . . . . . . . . Robot Schematics Acquired . | . . . . . . . . . . . . . . Robots Built . | . . . . . . . . . . . . . . Authchips . | . . . . . . . . . . . . . . Time . | . . . . . . . . . . . . . . Total Robot Build Rating . | . . . . . . . . . . . . . . Part Schematics Acquired 16 | . . . . . 2 . 2 . 1 4 . 7 . Parts Built 3 | . . . . . . . . . . 2 . 1 . Authchips . | . . . . . . . . . . . . . . Time 252 | . . . . . . . . . . 146 . 106 . Total Part Build Rating 12 | . . . . . . . . . . 6 . 6 . Parts Repaired 6 | . . . . . . . 1 . . 4 . 1 . Time 244 | . . . . . . . 38 . . 167 . 39 . Parts Recycled . | . . . . . . . . . . . . . . Recycled Matter 174 | . . . . . . . . . . 174 . . . Retrieved Matter . | . . . . . . . . . . . . . . Retrieved Components . | . . . . . . . . . . . . . . Parts Scanalyzed 5 | . . . . . 2 . 1 . . 2 . . . Part Schematics Acquired 5 | . . . . . 2 . 1 . . 2 . . . Parts Damaged . | . . . . . . . . . . . . . . Bothacking | -11 -10 -10 -10 -9 -8 -8 -7 -7 -7 -6 -6 -6 -6 ------------ Run | Scr Mat Min Exi Min Mat Gar Fac Gar Sto Fac Was Fac Low Used RIF Installer 2 | . . . . . . 1 . 1 . . . . . Signal Jammer 1 | . . . . . . . . 1 . . . . . Robots Hacked 30 | . . . . . . . 7 3 7 7 5 1 . Non-combat 13 | . . . . . . . 6 . 2 4 . 1 . Combat 17 | . . . . . . . 1 3 5 3 5 . . Robot Hacks Applied 39 | . . . . . . . 10 3 9 9 6 2 . parse_system 4 | . . . . . . . . . 1 3 . . . no_distress 10 | . . . . . . . 7 . . 3 . . . generate_echo 1 | . . . . . . . . . . . . 1 . find_fabricator 1 | . . . . . . . 1 . . . . . . drop_inventory 1 | . . . . . . . . . . . . 1 . purge_threat 1 | . . . . . . . . . 1 . . . . locate_traps 1 | . . . . . . . . . 1 . . . . reprogram_traps 1 | . . . . . . . . . 1 . . . . ignore_targets 6 | . . . . . . . . . . . 6 . . find_garrison 1 | . . . . . . . . . . 1 . . . reboot_system 3 | . . . . . . . 1 1 1 . . . . go_dormant 1 | . . . . . . . . . 1 . . . . overwrite_iff 1 | . . . . . . . 1 . . . . . . streamctrl_high 1 | . . . . . . . . . 1 . . . . formatsys_high 6 | . . . . . . . . 2 2 2 . . . Relay Couplers Released 42 | . . . . . . 15 1 15 2 6 . 3 . Machine Destruction 41 | . . . . . . 15 . 15 2 6 . 3 . Programmers 1 | . . . . . . . 1 . . . . . . Attached 12 | . . . . . . . 1 3 3 3 1 1 . Fabnet Peak Effective % . | . . . . . . . . . . . . . . Robots Rewired 5 | . . . . . . . . 1 . . . . 4 Allies Hacked 1 | . . . . . . . . . . 1 . . . Hacks Repelled . | . . . . . . . . . . . . . . Allies | -11 -10 -10 -10 -9 -8 -8 -7 -7 -7 -6 -6 -6 -6 -------- Run | Scr Mat Min Exi Min Mat Gar Fac Gar Sto Fac Was Fac Low Total Allies 23 | . 1 3 . . . . 2 3 5 3 . 2 4 Largest Group 4 | . 1 3 3 3 3 . 1 2 2 1 . 1 4 Highest-Rated Group 124 | . 10 40 40 40 40 . 26 37 62 32 . 10 124 Highest-Rated Ally 32 | . 10 16 16 16 16 . 26 32 32 32 . 10 31 Total Orders 4 | . . . . . . . 3 1 . . . . . STAY 3 | . . . . . . . 2 1 . . . . . FOLLOW 1 | . . . . . . . 1 . . . . . . Ally Attacks 117 | . . . . 17 14 . 2 20 42 3 . . 19 Total Damage 2441 | . . . . 169 158 . 27 605 939 163 . . 380 Kills 22 | . . . . 3 2 . . 8 8 . . . 1 Allies Corrupted 1 | . . . . . . . . . 1 . . . . Allies Melted . | . . . . . . . . . . . . . . Intel | -11 -10 -10 -10 -9 -8 -8 -7 -7 -7 -6 -6 -6 -6 ------- Run | Scr Mat Min Exi Min Mat Gar Fac Gar Sto Fac Was Fac Low Robot Analysis Total 2 | . . . . . . . . . . 1 . 1 . Derelict Logs Recovered 2 | . . 1 . 1 . . . . . . . . . Drone Launches . | . . . . . . . . . . . . . . Drone Recoveries . | . . . . . . . . . . . . . . Exploration | -11 -10 -10 -10 -9 -8 -8 -7 -7 -7 -6 -6 -6 -6 ------------- Run | Scr Mat Min Exi Min Mat Gar Fac Gar Sto Fac Was Fac Low Turns Passed 24053 | 83 1304 1257 1024 882 3131 1456 4159 1246 1038 6112 221 1551 589 Spaces Moved 12973 | 50 638 502 425 358 1059 530 2085 845 586 3667 257 1623 348 Core 10 | 9 . . . . 1 . . . . . . . . Treads 7639 | 41 638 502 425 358 1058 530 1656 . 64 2367 . . . Legs . | . . . . . . . . . . . . . . Wheels 1796 | . . . . . . . 429 845 522 . . . . Hover 3528 | . . . . . . . . . . 1300 257 1623 348 Flight . | . . . . . . . . . . . . . . Fastest Speed 38 | 50 160 240 240 240 160 240 105 105 105 38 38 38 150 Average Speed 148 | 143 168 240 240 240 239 244 160 105 137 122 38 64 150 Slowest Speed 700 | 160 240 240 240 240 700 250 246 120 320 240 38 230 190 Overloaded Moves . | . . . . . . . . . . . . . . Propulsion Burnouts . | . . . . . . . . . . . . . . Robots Hopped . | . . . . . . . . . . . . . . Cave-ins Triggered 2 | . . . . . . . . . . 1 . 1 . Exploration Rate (%) 65 | 4 78 96 87 73 81 78 41 77 56 66 97 37 42 Regions Visited 13 Branch Regions 5 Pre-discovered Areas 3 | . . 1 1 1 . . . . . . . . . Known Exits Taken 4 | . 1 . . . 1 . 1 . . . . 1 . Unknown Exits Taken 5 | 1 . 1 1 1 . . . . 1 . . . . Scrap Searched 3 | . . 1 . 1 . . . . . . . . 1 Spaces Dug 236 | . 5 . . . 3 . 30 3 14 121 1 59 . Terrain Destroyed 378 | . 5 . . . 61 5 33 8 46 153 1 65 1 Melee 230 | . . . . . 3 . 30 3 14 121 1 58 . Projectile 22 | . 5 . . . 4 1 . . . 4 . 7 1 AOE 126 | . . . . . 54 4 3 5 32 28 . . . Terrain Rammed . | . . . . . . . . . . . . . . Walls Destroyed . | . . . . . . . . . . . . . . Machines Disabled . | . . . . . . . . . . . . . . Actions | -11 -10 -10 -10 -9 -8 -8 -7 -7 -7 -6 -6 -6 -6 --------- Run | Scr Mat Min Exi Min Mat Gar Fac Gar Sto Fac Was Fac Low Total 16274 | 59 767 536 430 377 1469 633 2684 1095 723 4803 362 1932 404 Wait 1750 | . 67 21 5 13 211 17 287 94 20 777 77 142 19 Move 12959 | 49 637 501 424 357 1058 528 2084 844 585 3667 256 1621 348 Hop . | . . . . . . . . . . . . . . Pick Up 116 | 4 6 2 1 3 23 5 39 7 9 9 3 3 2 Fast Attach 113 | 5 2 . . . 23 . 13 4 15 32 . 13 6 Attach 41 | 1 . 1 . . 14 4 5 5 . 5 1 4 1 Detach 7 | . . . . . . 1 3 1 . 2 . . . Swap 126 | . 4 1 . 2 14 6 33 21 10 24 5 6 . Drop 146 | . 4 . . . 26 2 47 6 17 28 2 14 . Fire 516 | . 47 10 . 2 93 56 102 40 36 49 17 57 7 Melee 385 | . . . . . 3 . 62 22 31 197 1 69 . Ram 2 | . . . . . . . . . . . . 2 . Kick . | . . . . . . . . . . . . . . Crush . | . . . . . . . . . . . . . . Escape Stasis 85 | . . . . . . 14 8 49 . 13 . 1 . Rewire 24 | . . . . . . . 1 2 . . . . 21 Trap 4 | . . . . . 4 . . . . . . . . Miscellaneous . | . . . . . . . . . . . . . . Route ------- -11/Scrapyard -10/Materials (discovered 2 exits: [*Mat] / *Min) -10/Mines (discovered 2 exits: [*Mat] / *Exi) -10/Exiles -9/Mines -8/Materials (discovered 3 exits: *Fac x2 / Gar) -8/Garrison (discovered 3 exits: *Fac x3) -7/Factory (discovered 5 exits: *Sto x2 / Low x2 / Gar) -7/Garrison (discovered 3 exits: *Sto x3) -7/Storage -6/Factory (discovered 3 exits: *Fac / *Low x2) -6/Waste -6/Factory (discovered 3 exits: *Fac x2 / *Low) -6/Lower Caves History --------- Turn | Location | Event 10 | -11/Scrapyard | Discovered new exit (range 16) 84 | -11/Scrapyard | Entered Materials 239 | -10/Materials | Discovered new exit (range 16) 314 | -10/Materials | Build established: Mutant 356 | -10/Materials | Identified exit to Mines 1388 | -10/Materials | Entered Mines 1388 | -10/Mines | Accompanied by 1 ally 1771 | -10/Mines | Destroyed YI-UF0 1802 | -10/Mines | Learned Materials stockpile data 1959 | -10/Mines | Deemed a non-threat by the Exiles lab entrance 1959 | -10/Mines | Discovered new exit (range 5) 2024 | -10/Mines | Discovered new exit (range 6) 2234 | -10/Mines | Learned location of Storage (-7) 2542 | -10/Mines | Assisted by bots powering up and referring to "LRC-V3" 2645 | -10/Mines | Entered Exiles 2645 | -10/Exiles | Accompanied by 3 allies 2703 | -10/Exiles | Met 8R-AWN 2749 | -10/Exiles | Met EX-HEX 2845 | -10/Exiles | Met EX-DEC 2854 | -10/Exiles | Learned location of Zion (-6) 2893 | -10/Exiles | Met EX-BIN 2955 | -10/Exiles | Aligned with FarCom system 2957 | -10/Exiles | Given EX-Vault access code 3020 | -10/Exiles | Opened EX-Vault 3034 | -10/Exiles | Found Gui. Plasma Cannon 3086 | -10/Exiles | Warned to stay clear of 0b10 Research branches 3264 | -10/Exiles | Visited The Gauntlet 3638 | -10/Exiles | Discovered new exit (range 12) 3669 | -10/Exiles | Left Exiles lab with Gui. Plasma Cannon 3669 | -10/Exiles | Entered Mines 3669 | -9/Mines | Accompanied by 3 allies 3704 | -9/Mines | Found a damaged Exp. Sensor Array with a note attached 3709 | -9/Mines | Found Prototype Device 3720 | -9/Mines | Identified Exp. Sensor Array 3879 | -9/Mines | Received a Rocket Launcher from a helpful Derelict 4300 | -9/Mines | Assembled infested the area 4305 | -9/Mines | Assisted by a Guerilla fighting off Assembled 4515 | -9/Mines | Discovered new exit (range 6) 4551 | -9/Mines | Entered Materials 4551 | -8/Materials | Accompanied by 3 allies 4551 | -8/Materials | Evolved 4 slots: Utility x4 6673 | -8/Materials | Discovered new exit (range 16) 6936 | -8/Materials | Identified exit to Factory 7168 | -8/Materials | Discovered exit to Factory (range 4) 7403 | -8/Materials | Core integrity fell below 50% 7427 | -8/Materials | Found Corrupted Prototype Device 7437 | -8/Materials | Lost 11 parts (2p3n3u3w) 7439 | -8/Materials | System corruption reached 10% 7679 | -8/Materials | Identified exit to Garrison 7682 | -8/Materials | Entered Garrison 7740 | -8/Garrison | Triggered checkpoint 7799 | -8/Garrison | Garrison Relay disabled 7837 | -8/Garrison | System corruption reached 30% 7925 | -8/Garrison | Triggered checkpoint 7935 | -8/Garrison | Triggered checkpoint 8007 | -8/Garrison | Triggered checkpoint 8117 | -8/Garrison | Discovered exit to Factory (range 19) 8160 | -8/Garrison | Triggered checkpoint 8235 | -8/Garrison | Garrison Relay disabled 8337 | -8/Garrison | Installed Relay Interface Framework 8444 | -8/Garrison | Triggered checkpoint 8628 | -8/Garrison | Build established: Bothacker-Mutant 8662 | -8/Garrison | Triggered checkpoint 8666 | -8/Garrison | Discovered exit to Factory (range 11) 8756 | -8/Garrison | Triggered checkpoint 8798 | -8/Garrison | Garrison Relay disabled 8971 | -8/Garrison | Triggered checkpoint 9041 | -8/Garrison | Garrison Relay disabled 9085 | -8/Garrison | Discovered exit to Factory (range 17) 9138 | -8/Garrison | Entered Factory 9138 | -7/Factory | Evolved 2 slots: Propulsion x2 9427 | -7/Factory | Build established: Scavenger-Mutant 10386 | -7/Factory | Build established: Bothacker-Mutant 10858 | -7/Factory | Discovered new exit (range 4) 11117 | -7/Factory | Repaired Arm. Treads 11147 | -7/Factory | Cargo convoy interrupted 12023 | -7/Factory | Identified exit to Storage 12023 | -7/Factory | Identified exit to Lower Caves 12254 | -7/Factory | Build established: Mutant 13138 | -7/Factory | First assault squad dispatched 13163 | -7/Factory | Destroyed 7 combat bots 13296 | -7/Factory | Identified exit to Garrison 13297 | -7/Factory | Entered Garrison 13322 | -7/Garrison | Triggered checkpoint 13402 | -7/Garrison | Garrison Relay disabled 13528 | -7/Garrison | Triggered checkpoint 13602 | -7/Garrison | Triggered checkpoint 13639 | -7/Garrison | Triggered checkpoint 13683 | -7/Garrison | Lost 4 parts (1n2u1w) 13737 | -7/Garrison | Discovered exit to Storage (range 8) 13904 | -7/Garrison | Triggered checkpoint 13904 | -7/Garrison | Build established: Scavenger-Mutant 13960 | -7/Garrison | Garrison Relay disabled 14020 | -7/Garrison | Discovered exit to Storage (range 12) 14101 | -7/Garrison | Triggered checkpoint 14190 | -7/Garrison | Triggered checkpoint 14234 | -7/Garrison | Garrison Relay disabled 14258 | -7/Garrison | Discovered exit to Storage (range 14) 14278 | -7/Garrison | Expanded RIF knowledge: Signal Jamming 14291 | -7/Garrison | Build established: Bothacker-Mutant 14434 | -7/Garrison | Triggered checkpoint 14543 | -7/Garrison | Entered Storage 14543 | -7/Storage | Accompanied by 1 ally 14772 | -7/Storage | Garrison activated, responded to threat 14943 | -7/Storage | First assault squad dispatched 15024 | -7/Storage | Destroyed 9 combat bots 15389 | -7/Storage | Discovered new exit (range 5) 15507 | -7/Storage | Met a pair of Derelict thieves 15581 | -7/Storage | Entered Factory 15581 | -6/Factory | Evolved 2 slots: Utility x2 15854 | -6/Factory | Lost 5 parts (1p3u1w) 15928 | -6/Factory | Discovered new exit (range 12) 16095 | -6/Factory | Repaired Power Maul 16116 | -6/Factory | Build established: Mutant 16138 | -6/Factory | Identified exit to Lower Caves 17313 | -6/Factory | Build established: Bothacker-Mutant 17438 | -6/Factory | Repaired Med. Treads 17743 | -6/Factory | Discovered exit to Lower Caves (range 5) 17943 | -6/Factory | Repaired Med. Treads 18609 | -6/Factory | Lost 3 parts (2n1u) 19518 | -6/Factory | P-60 Hacker assimilated allied Guardian 5b 19917 | -6/Factory | Central database locked down 20559 | -6/Factory | System corruption reached 10% 20627 | -6/Factory | Fabricated Hacking Suite? 20793 | -6/Factory | Discovered new exit (range 14) 20875 | -6/Factory | Fabricated Hacking Suite? 21161 | -6/Factory | Build established: Bothacker-Scout 21311 | -6/Factory | Identified exit to Factory 21356 | -6/Factory | Repaired Imp. Airjet 21529 | -6/Factory | Build established: Hacker-Mutant 21643 | -6/Factory | Crushed by falling debris 21693 | -6/Factory | Manually triggered Chute Trap 21693 | -6/Factory | Sucked down chute 21693 | -6/Factory | Entered Waste 21704 | -6/Waste | Spotted C-40 Crusher 21704 | -6/Waste | Spotted C-40 Crusher 21708 | -6/Waste | EMP discharged 21716 | -6/Waste | Spotted C-40 Crusher 21719 | -6/Waste | Spotted C-40 Crusher 21721 | -6/Waste | Spotted C-40 Crusher 21732 | -6/Waste | Discovered new exit (range 13) 21808 | -6/Waste | EMP discharged 21821 | -6/Waste | Spotted C-40 Crusher 21908 | -6/Waste | EMP discharged 21908 | -6/Waste | System corruption reached 30% 21914 | -6/Waste | Entered Factory 22067 | -6/Factory | Repaired Broken Gyrokinetic Inverter? 22240 | -6/Factory | Discovered exit to Factory (range 9) 22454 | -6/Factory | Discovered exit to Factory (range 16) 22549 | -6/Factory | Core integrity fell below 50% 22720 | -6/Factory | Fabricated Adv. Hacking Suite? 23053 | -6/Factory | Central database locked down 23077 | -6/Factory | Discovered exit to Lower Caves (range 12) 23125 | -6/Factory | Adv. Hacking Suite fried by hacking feedback 23213 | -6/Factory | Crushed by falling debris 23270 | -6/Factory | Lost 5 parts (1p1n2u1w) 23428 | -6/Factory | Core integrity fell below 20% 23465 | -6/Factory | Entered Lower Caves 23471 | -6/Lower Caves | Lost 7 parts (1p3n2u1w) 23488 | -6/Lower Caves | Attacked by a delusional Derelict stockpiling Unaware 24036 | -6/Lower Caves | Attracted the attention of an 0b10 base 24054 | -6/Lower Caves | Destroyed by S-27 Virus with Autogun Last Messages --------------- 24036_ Y-64 Sentinel suffers critical hit (Burn). 24037_ Y-64 Sentinel heat damages Wave Gun. 24037_ Destroyed Wave Gun. 24038_ Y-64 Sentinel heat damages Imp. Treads. 24039_ Critical hit (Burn: +37). 24039_ GS-MHT(g) suffers critical hit (Burn). 24040_ System corrupted: Matter fused (-6). 24040_ 87-ZAT(g) destroyed. 24041_ Y-64 Sentinel heat damages core (-23). 24041_ Acquired 50 matter. 24042_ GS-MHT(g) heat spikes uncontrollably. 24042_ G-50 Soldier heat spikes uncontrollably. 24043_ GS-MHT(g) heat damages core (-16). 24043_ G-50 Soldier overheating. 24045_ 6B-ZCC(g) destroyed. 24046_ Unknown Ballistic Gun fries itself beyond repair. 24049_ Adv. Terrain Scanner destroyed. 24049_ Imp. Reaction Control System destroyed. 24054_ System corrupted: Hvy. Ion Cannon failed to cycle. 24054_ S-27 Virus springs to life. Map ----- +----------------------------------------------------+ | ?????????????????# ## ###????# ##?? | | ?????????????????# ##### #????## ##? | | ????????????????## ##???### ##????# ## | | ???####???????### ###????## ###### ## # | | ??## ##??##### #?????## # ## ## | | ?## #### ## #????## ## #? | | ?# #?# #????# ## #? | | ?# ####?? #???# ### ## | | ?# ## ##?????? ##???#### #?## ## | | ?# ## ######??##???????# #?## #### | | ?# ## ##??????????# ### ##?# | | ?# ### ##????###??## ## ### | | ?# ##?## #???# ##### ## | | ?####???## ## #???# # | | ????????## ## ## #??# | | ???????## ### ## #?# ####### ## | | ?????### ## ## ## ### ##???# ### | | ???### ### ### ## #???######## | | ??## ### ##?# # ##?????????# | | ?## ## ##### ##### ####?????# | | ## ### ##?# #?????# | | # #### ##?# !!!! #?????# | | # #### ### %=%=######+#### ##????### | | ## #?# ###%=!%#""""" ""#??????????##### | | ?# #?# ## # ""#?????????#????? | | ?## ### ######### #@ T"#??????????????? | | ??## ###????????### sg ""#?????#????????? | | ??## ##????????????# # #??????????????? | | ?## ##?????????????# # #? ????????????? | | ?# #??????????????# #""" "#??????????????? | | ## ##?????????????# #??? s"#????#?????????? | | # #?????????????# #???? "#??????????????? | | ### #????????????# #????######??????????????? | | ??## #?#??????????# ????????????????????????? | | ???## #????????????# ????????????????????????? | | ????## ##????????????# #????????????????????????? | | ??????##??????????#?? #????????????????????????? | | ????????????????????? ????????????????????????? | | ????????????????????? #????????????????????????? | | ????????????????????? ?????????????????????????? | | ????????????????????? ?????????????????????????? | | ????????????????????? ?????????????????????????? | | ?????????????????????????????????????????????????? | | ?????????????????????????????????????????????????? | | ?????????????????????????????????????????????????? | | ?????????????????????????????????????????????????? | | ?????????????????????????????????????????????????? | | ?????????????????????????????????????????????????? | | ?????????????????????????????????????????????????? | | ?????????????????????????????????????????????????? | +----------------------------------------------------+ Best States ------------- Heat Dissipation 76 Energy Generation 18 Energy Capacity 300 Matter Stores 300 Matter Capacity 300 Sight Range 20 Terrain Scan Range 20 Terrain Scan Density 10 Base Temperature (-) 100 EM Shielding 2 Armor Coverage 600 Resistance: KI 20 Resistance: TH 10 Resistance: EM 15 Propulsion Shielding 33 Evasion (%) 57 Targeting Accuracy 8 Melee Accuracy 11 Target Analysis 5 Recoil Reduction 4 Particle Charging 20 Salvage Targeting 1 Offensive Hacking 34 Defensive Hacking 10 Relay Coupler Types 3 Relay Coupler Value 57 Item Schematics ----------------- Chainsword | -8/Materials | Scanalyzed Datajack | -8/Materials | Scanalyzed Arc Projector | -7/Factory | Scanalyzed Imp. Gravmag System | -7/Factory | Hacked Gyrokinetic Inverter | -7/Storage | Hacked Graphene Brace | -6/Factory | Scanalyzed Cld. Airjet | -6/Factory | Scanalyzed Hacking Suite | -6/Factory | Hacked System Shield | -6/Factory | Hacked Adv. Signal Interpreter | -6/Factory | Hacked Imp. Hacking Suite | -6/Factory | Hacked Imp. System Shield | -6/Factory | Hacked Adv. Hacking Suite | -6/Factory | Hacked Imp. Arc Projector | -6/Factory | Hacked Field Propulsion Array | -6/Factory | Hacked Lgt. Fission Core | -6/Factory | Hacked Robot Schematics ------------------ None Fabricated ------------ Hacking Suite | x1 | -6/Factory Hacking Suite | x1 | -6/Factory Adv. Hacking Suite | x1 | -6/Factory Alien Tech Used ----------------- None Achievements -------------- None Challenges ------------ None Game ------ Seed HardenedContainmentScanner Manual? 0 Play Time 03:56:06 Cumulative 165.8 hours Start 2022.09.27 @ 17:21:04 End 2022.09.27 @ 22:14:47 Sessions 1 Manual Loads 0 Difficulty Rogue Special Mode None Game No. 130 Rogue 127 Adventurer 3 Explorer 0 Win Type - Total 1 Types 1/0/0/0/0/0/0/0/0 Lore% 57 Gallery% 59 Achievement% 50 Wizard Run 0 Options --------- ASCII 0 Keyboard 0 Movement Numpad Keybinds 0 Fullscreen 1 Font 18/SmallcapsGlow Map View 76x50 Tactical HUD 1 Map Filters NONE Filters NONE Steam 1 RUN: 7cc64307-da8f-4214-8ff5-bbbadf25f083